[Event "*** Titled Tuesday Blitz"]
[Site "Chess.com"]
[Date "2020.10.27"]
[Round "5"]
[White "fireheart92"]
[Black "PaulfromSPb"]
[Result "0-1"]
[WhiteElo "2860"]
[BlackElo "2693"]
[TimeControl "180+1"]
[EndTime "10:56:25 PDT"]
[Termination "PaulfromSPb won on time"]

1. d4 {[%clk 0:03:00.9]} 1... Nf6 {[%clk 0:02:56.3]} 2. c4 {[%clk 0:03:00.9]}
2... e6 {[%clk 0:02:56]} 3. Nf3 {[%clk 0:03:00.4]} 3... b6 {[%clk 0:02:54.9]} 4.
g3 {[%clk 0:02:58.8]} 4... Ba6 {[%clk 0:02:54]} 5. Qc2 {[%clk 0:02:58.5]} 5...
Bb7 {[%clk 0:02:50.2]} 6. Bg2 {[%clk 0:02:57.9]} 6... c5 {[%clk 0:02:47.4]} 7.
d5 {[%clk 0:02:57.7]} 7... exd5 {[%clk 0:02:47.4]} 8. cxd5 {[%clk 0:02:58.6]}
8... Nxd5 {[%clk 0:02:47.7]} 9. O-O {[%clk 0:02:58.5]} 9... Nc7 {[%clk
0:02:40.1]} 10. Nc3 {[%clk 0:02:32]} 10... Be7 {[%clk 0:02:37.5]} 11. Bf4 {[%clk
0:02:32]} 11... Nc6 {[%clk 0:02:32.1]} 12. Bxc7 {[%clk 0:02:14.2]} 12... Qxc7
{[%clk 0:02:31.4]} 13. Nd5 {[%clk 0:02:14.6]} 13... Qd8 {[%clk 0:02:25.4]} 14.
Rfd1 {[%clk 0:02:12.2]} 14... O-O {[%clk 0:02:23.3]} 15. Rd2 {[%clk 0:02:05.9]}
15... d6 {[%clk 0:01:57.2]} 16. Rad1 {[%clk 0:02:03.3]} 16... Re8 {[%clk
0:01:56.7]} 17. a3 {[%clk 0:01:53.4]} 17... Bf8 {[%clk 0:01:55.8]} 18. e3 {[%clk
0:01:53]} 18... b5 {[%clk 0:01:51.4]} 19. h4 {[%clk 0:01:52.4]} 19... h6 {[%clk
0:01:49.5]} 20. Qf5 {[%clk 0:01:46.2]} 20... Qc8 {[%clk 0:01:43.1]} 21. Qf4
{[%clk 0:01:43.6]} 21... Ne5 {[%clk 0:01:37.7]} 22. Nxe5 {[%clk 0:01:27.6]}
22... dxe5 {[%clk 0:01:38.6]} 23. Qf3 {[%clk 0:01:16.4]} 23... Rb8 {[%clk
0:01:33.2]} 24. Qh5 {[%clk 0:01:06.4]} 24... c4 {[%clk 0:01:23]} 25. Be4 {[%clk
0:01:04.4]} 25... a5 {[%clk 0:00:46.2]} 26. Bf5 {[%clk 0:00:20.2]} 26... Qc5
{[%clk 0:00:43]} 27. Be4 {[%clk 0:00:17.2]} 27... Bc8 {[%clk 0:00:36.7]} 28. Bf5
{[%clk 0:00:15.8]} 28... Bxf5 {[%clk 0:00:33.8]} 29. Qxf5 {[%clk 0:00:15.4]}
29... Re6 {[%clk 0:00:33.8]} 30. Nc3 {[%clk 0:00:14.2]} 30... b4 {[%clk
0:00:33.4]} 31. axb4 {[%clk 0:00:15.1]} 31... axb4 {[%clk 0:00:33.4]} 32. Ne4
{[%clk 0:00:15.3]} 32... Qc7 {[%clk 0:00:31.6]} 33. Rd7 {[%clk 0:00:15]} 33...
Qc6 {[%clk 0:00:24.1]} 34. Qxf7+ {[%clk 0:00:14.9]} 34... Kh8 {[%clk 0:00:24.5]}
35. Rd8 {[%clk 0:00:15.2]} 35... Re8 {[%clk 0:00:21.9]} 36. Rxb8 {[%clk
0:00:08.2]} 36... Rxb8 {[%clk 0:00:21.3]} 37. Qf5 {[%clk 0:00:07.4]} 37... c3
{[%clk 0:00:17.8]} 38. bxc3 {[%clk 0:00:08.3]} 38... bxc3 {[%clk 0:00:18]} 39.
Rc1 {[%clk 0:00:07.5]} 39... c2 {[%clk 0:00:16.5]} 40. Kh2 {[%clk 0:00:07.8]}
40... Ba3 {[%clk 0:00:12.7]} 41. Qxe5 {[%clk 0:00:05.2]} 41... Rc8 {[%clk
0:00:11.1]} 42. Rxc2 {[%clk 0:00:01.2]} 42... Qxc2 {[%clk 0:00:12]} 0-1

[Event "*** Titled Tuesday Blitz"]
[Site "Chess.com"]
[Date "2020.10.27"]
[Round "5"]
[White "chessmachine14"]
[Black "TregubovP"]
[Result "1-0"]
[WhiteElo "2353"]
[BlackElo "2524"]
[TimeControl "180+1"]
[EndTime "10:56:25 PDT"]
[Termination "chessmachine14 won by resignation"]

1. e4 {[%clk 0:03:00.9]} 1... e6 {[%clk 0:02:58.7]} 2. d4 {[%clk 0:02:59.1]}
2... d5 {[%clk 0:02:57.7]} 3. e5 {[%clk 0:02:55.8]} 3... c5 {[%clk 0:02:57.5]}
4. c3 {[%clk 0:02:54.5]} 4... Nc6 {[%clk 0:02:58]} 5. Nf3 {[%clk 0:02:54.5]}
5... Qb6 {[%clk 0:02:58.2]} 6. a3 {[%clk 0:02:52.4]} 6... Bd7 {[%clk 0:02:58.4]}
7. Be2 {[%clk 0:02:48.1]} 7... Nh6 {[%clk 0:02:44.2]} 8. b4 {[%clk 0:02:42.3]}
8... cxd4 {[%clk 0:02:43.8]} 9. Bxh6 {[%clk 0:02:41.3]} 9... gxh6 {[%clk
0:02:36.4]} 10. cxd4 {[%clk 0:02:41.2]} 10... Rc8 {[%clk 0:02:10.9]} 11. Ra2
{[%clk 0:02:25.6]} 11... Ne7 {[%clk 0:02:01.8]} 12. Rc2 {[%clk 0:02:07.9]} 12...
Rxc2 {[%clk 0:01:58.9]} 13. Qxc2 {[%clk 0:02:08]} 13... Nf5 {[%clk 0:01:59.5]}
14. Qc3 {[%clk 0:02:08.2]} 14... a5 {[%clk 0:01:53.3]} 15. b5 {[%clk 0:01:57.4]}
15... Be7 {[%clk 0:01:31.4]} 16. O-O {[%clk 0:01:55.6]} 16... a4 {[%clk
0:01:29.3]} 17. Rc1 {[%clk 0:01:23.6]} 17... O-O {[%clk 0:01:21.4]} 18. Qb2
{[%clk 0:01:05]} 18... Rc8 {[%clk 0:00:59.1]} 19. Rxc8+ {[%clk 0:01:04.5]} 19...
Bxc8 {[%clk 0:00:59.2]} 20. Qc2 {[%clk 0:01:04.7]} 20... Bd7 {[%clk 0:00:55.2]}
21. Qxa4 {[%clk 0:01:04.4]} 21... Qc7 {[%clk 0:00:55.4]} 22. Qd1 {[%clk
0:00:55.3]} 22... Qa5 {[%clk 0:00:50.7]} 23. a4 {[%clk 0:00:53]} 23... Qb4
{[%clk 0:00:49.3]} 24. g3 {[%clk 0:00:49.1]} 24... Bd8 {[%clk 0:00:49.2]} 25.
Bd3 {[%clk 0:00:33.5]} 25... Ne7 {[%clk 0:00:38.7]} 26. Bc2 {[%clk 0:00:31.4]}
26... Bb6 {[%clk 0:00:29.4]} 27. Qd3 {[%clk 0:00:30.6]} 27... Ng6 {[%clk
0:00:29.4]} 28. h4 {[%clk 0:00:30]} 28... h5 {[%clk 0:00:28.6]} 29. Nbd2 {[%clk
0:00:20.3]} 29... Kg7 {[%clk 0:00:27.6]} 30. Nf1 {[%clk 0:00:20.3]} 30... Qc4
{[%clk 0:00:23.8]} 31. Ne3 {[%clk 0:00:20.1]} 31... Qxd3 {[%clk 0:00:23.2]} 32.
Bxd3 {[%clk 0:00:20.5]} 32... Ne7 {[%clk 0:00:22.3]} 33. Ng2 {[%clk 0:00:20.8]}
33... f6 {[%clk 0:00:16.5]} 34. Nf4 {[%clk 0:00:20.3]} 34... fxe5 {[%clk
0:00:15.7]} 35. dxe5 {[%clk 0:00:20.2]} 35... Ng6 {[%clk 0:00:13.9]} 36. Nxh5+
{[%clk 0:00:19.9]} 36... Kf7 {[%clk 0:00:13.4]} 37. Nf6 {[%clk 0:00:19.7]} 37...
Bc8 {[%clk 0:00:11]} 38. Ng5+ {[%clk 0:00:19.9]} 38... Kg7 {[%clk 0:00:09.5]}
39. Ne8+ {[%clk 0:00:20.1]} 39... Kf8 {[%clk 0:00:08.6]} 40. Bxg6 {[%clk
0:00:17.2]} 40... hxg6 {[%clk 0:00:07.8]} 41. Nd6 {[%clk 0:00:17.3]} 41... Bd7
{[%clk 0:00:08]} 42. Nxb7 {[%clk 0:00:17]} 42... Ke7 {[%clk 0:00:06.1]} 43. a5
{[%clk 0:00:17.2]} 43... Bd4 {[%clk 0:00:05.7]} 44. Nf3 {[%clk 0:00:15.4]} 44...
Bc3 {[%clk 0:00:05.3]} 45. a6 {[%clk 0:00:14.4]} 1-0

[Event "*** Titled Tuesday Blitz"]
[Site "Chess.com"]
[Date "2020.10.27"]
[Round "5"]
[White "RU_B9"]
[Black "DonBroca"]
[Result "1-0"]
[WhiteElo "1737"]
[BlackElo "2139"]
[TimeControl "180+1"]
[EndTime "10:56:26 PDT"]
[Termination "RU_B9 won by resignation"]

1. c4 {[%clk 0:03:00.9]} 1... Nf6 {[%clk 0:02:08.8]} 2. Nc3 {[%clk 0:03:00]}
2... g6 {[%clk 0:02:09.5]} 3. e4 {[%clk 0:02:59.1]} 3... Bg7 {[%clk 0:02:10.4]}
4. d4 {[%clk 0:02:59.3]} 4... d6 {[%clk 0:02:11.1]} 5. Be2 {[%clk 0:02:59.7]}
5... O-O {[%clk 0:02:11.5]} 6. Nf3 {[%clk 0:03:00.1]} 6... e5 {[%clk 0:02:11.6]}
7. d5 {[%clk 0:03:00.2]} 7... Nbd7 {[%clk 0:02:11]} 8. O-O {[%clk 0:02:57.2]}
8... a5 {[%clk 0:02:11.4]} 9. h3 {[%clk 0:02:54.5]} 9... Nc5 {[%clk 0:02:11.7]}
10. Nd2 {[%clk 0:02:54.3]} 10... Bd7 {[%clk 0:02:06.4]} 11. b3 {[%clk
0:02:53.7]} 11... Ne8 {[%clk 0:02:04.3]} 12. Rb1 {[%clk 0:02:46.4]} 12... f5
{[%clk 0:02:03.5]} 13. a3 {[%clk 0:02:42.8]} 13... f4 {[%clk 0:01:55.5]} 14. Bg4
{[%clk 0:02:40.7]} 14... Nf6 {[%clk 0:01:52.7]} 15. Bxd7 {[%clk 0:02:40]} 15...
Ncxd7 {[%clk 0:01:53.4]} 16. b4 {[%clk 0:02:30.5]} 16... g5 {[%clk 0:01:51.9]}
17. f3 {[%clk 0:02:01.2]} 17... h5 {[%clk 0:01:51.3]} 18. Rf2 {[%clk 0:01:56.2]}
18... g4 {[%clk 0:01:49.6]} 19. hxg4 {[%clk 0:01:49.6]} 19... hxg4 {[%clk
0:01:50.1]} 20. fxg4 {[%clk 0:01:50.1]} 20... Nh7 {[%clk 0:01:32]} 21. Nf3
{[%clk 0:01:49.1]} 21... Ng5 {[%clk 0:01:29.8]} 22. Bd2 {[%clk 0:01:32.2]} 22...
axb4 {[%clk 0:01:14.2]} 23. axb4 {[%clk 0:01:31.7]} 23... Bh6 {[%clk 0:01:06.5]}
24. c5 {[%clk 0:01:28]} 24... Nxf3+ {[%clk 0:00:59.3]} 25. gxf3 {[%clk
0:01:28.9]} 25... dxc5 {[%clk 0:00:58.5]} 26. Rh2 {[%clk 0:01:17.2]} 26... Bg5
{[%clk 0:00:49.3]} 27. Rh5 {[%clk 0:01:14.3]} 27... Rf7 {[%clk 0:00:48.3]} 28.
Be1 {[%clk 0:01:12.3]} 28... Rh7 {[%clk 0:00:45.7]} 29. Rxh7 {[%clk 0:01:11.7]}
29... Kxh7 {[%clk 0:00:45.9]} 30. Qc2 {[%clk 0:01:06.2]} 30... Bh4 {[%clk
0:00:43.2]} 31. Qh2 {[%clk 0:01:04.7]} 31... Kg6 {[%clk 0:00:31.2]} 32. Bxh4
{[%clk 0:01:02.9]} 32... Qh8 {[%clk 0:00:29.6]} 33. bxc5 {[%clk 0:01:01.1]}
33... Nxc5 {[%clk 0:00:28.7]} 34. Bf2 {[%clk 0:01:00.3]} 34... Qxh2+ {[%clk
0:00:26.2]} 35. Kxh2 {[%clk 0:01:00]} 35... Nd3 {[%clk 0:00:27.1]} 36. Kg1
{[%clk 0:00:53.4]} 36... b6 {[%clk 0:00:27.1]} 37. Rd1 {[%clk 0:00:45.9]} 37...
Nb2 {[%clk 0:00:24.6]} 38. Rb1 {[%clk 0:00:45.2]} 38... Nc4 {[%clk 0:00:24.9]}
39. Nb5 {[%clk 0:00:41]} 39... Nd2 {[%clk 0:00:19.8]} 40. Rc1 {[%clk 0:00:40]}
40... Nxf3+ {[%clk 0:00:20.7]} 41. Kg2 {[%clk 0:00:38.7]} 41... Ng5 {[%clk
0:00:21.3]} 42. Rc6+ {[%clk 0:00:37]} 42... Kg7 {[%clk 0:00:17.8]} 43. Rxc7+
{[%clk 0:00:37.6]} 43... Kf8 {[%clk 0:00:17.7]} 44. d6 {[%clk 0:00:31.5]} 44...
Ra2 {[%clk 0:00:17.7]} 45. d7 {[%clk 0:00:30.8]} 45... Ke7 {[%clk 0:00:17]} 46.
Rb7 {[%clk 0:00:27.2]} 46... Nxe4 {[%clk 0:00:16.9]} 47. Kg1 {[%clk 0:00:24.3]}
47... Nxf2 {[%clk 0:00:15.9]} 48. Nd6 {[%clk 0:00:18.6]} 48... Nh3+ {[%clk
0:00:16.8]} 49. Kf1 {[%clk 0:00:18]} 49... Re2 {[%clk 0:00:16.7]} 50. Nf5+
{[%clk 0:00:16.1]} 50... Kd8 {[%clk 0:00:15.3]} 51. Ng7 {[%clk 0:00:15.9]} 51...
f3 {[%clk 0:00:16.2]} 52. Ne6+ {[%clk 0:00:15.8]} 52... Ke7 {[%clk 0:00:16.3]}
53. d8=Q+ {[%clk 0:00:16.2]} 53... Kxe6 {[%clk 0:00:16.2]} 54. Re7+ {[%clk
0:00:15.3]} 1-0

[Event "*** Titled Tuesday Blitz"]
[Site "Chess.com"]
[Date "2020.10.27"]
[Round "5"]
[White "Quiet_Desperation"]
[Black "ChelsieMonica"]
[Result "1-0"]
[WhiteElo "2023"]
[BlackElo "2328"]
[TimeControl "180+1"]
[EndTime "10:56:27 PDT"]
[Termination "Quiet_Desperation won by resignation"]

1. e4 {[%clk 0:03:00.9]} 1... Nc6 {[%clk 0:02:55.3]} 2. Nf3 {[%clk 0:02:59.5]}
2... d5 {[%clk 0:02:51]} 3. exd5 {[%clk 0:02:57.6]} 3... Qxd5 {[%clk 0:02:51.9]}
4. Nc3 {[%clk 0:02:57.2]} 4... Qd8 {[%clk 0:02:50.9]} 5. Bb5 {[%clk 0:02:51.2]}
5... Nf6 {[%clk 0:02:51.8]} 6. Ne5 {[%clk 0:02:47.5]} 6... Bd7 {[%clk
0:02:51.5]} 7. Nxd7 {[%clk 0:02:46.8]} 7... Qxd7 {[%clk 0:02:52.4]} 8. O-O
{[%clk 0:02:46.1]} 8... a6 {[%clk 0:02:52.9]} 9. Ba4 {[%clk 0:02:44.7]} 9... e6
{[%clk 0:02:53.2]} 10. d3 {[%clk 0:02:42.7]} 10... Bd6 {[%clk 0:02:52.9]} 11.
Bg5 {[%clk 0:02:42.2]} 11... h6 {[%clk 0:02:49.6]} 12. Bxf6 {[%clk 0:02:39.9]}
12... gxf6 {[%clk 0:02:50.5]} 13. Qf3 {[%clk 0:02:39.5]} 13... f5 {[%clk
0:02:46.5]} 14. d4 {[%clk 0:02:31.6]} 14... b5 {[%clk 0:02:37.7]} 15. Bb3 {[%clk
0:02:30.8]} 15... Ke7 {[%clk 0:02:30.9]} 16. d5 {[%clk 0:02:18.1]} 16... Ne5
{[%clk 0:02:24.8]} 17. Qe2 {[%clk 0:02:15]} 17... Rag8 {[%clk 0:02:23.3]} 18. f4
{[%clk 0:02:05.5]} 18... Ng4 {[%clk 0:02:21.3]} 19. h3 {[%clk 0:01:58.1]} 19...
h5 {[%clk 0:02:17.2]} 20. Rae1 {[%clk 0:01:53.4]} 20... Rh6 {[%clk 0:02:14]} 21.
Kh1 {[%clk 0:01:41.7]} 21... Rgg6 {[%clk 0:02:08.7]} 22. Nd1 {[%clk 0:01:27.4]}
22... Kd8 {[%clk 0:02:07.8]} 23. c4 {[%clk 0:01:20.2]} 23... Bc5 {[%clk
0:02:00.3]} 24. cxb5 {[%clk 0:01:17.4]} 24... axb5 {[%clk 0:02:00.2]} 25. Qc2
{[%clk 0:00:57.8]} 25... Qd6 {[%clk 0:01:51.5]} 26. Qd3 {[%clk 0:00:54]} 26...
b4 {[%clk 0:01:41]} 27. Qb5 {[%clk 0:00:50]} 27... e5 {[%clk 0:01:28.8]} 28.
Qb8+ {[%clk 0:00:45.4]} 28... Ke7 {[%clk 0:01:28.7]} 29. Ba4 {[%clk 0:00:45.5]}
29... Kf6 {[%clk 0:01:27.2]} 30. Qe8 {[%clk 0:00:36]} 30... e4 {[%clk
0:01:25.9]} 31. Qc6 {[%clk 0:00:28]} 31... Kg7 {[%clk 0:01:23.9]} 32. Qxd6
{[%clk 0:00:26.4]} 32... Rxd6 {[%clk 0:01:24.8]} 33. Bb3 {[%clk 0:00:26.2]}
33... Bd4 {[%clk 0:01:19.6]} 34. g3 {[%clk 0:00:25.8]} 34... Nf6 {[%clk
0:01:18.8]} 35. Kg2 {[%clk 0:00:25]} 35... Nxd5 {[%clk 0:01:18.5]} 36. Bxd5
{[%clk 0:00:23.7]} 36... Rxd5 {[%clk 0:01:19.4]} 37. Ne3 {[%clk 0:00:21.8]}
37... Bxe3 {[%clk 0:01:19.4]} 38. Rxe3 {[%clk 0:00:22.2]} 38... Rc6 {[%clk
0:01:20]} 39. Rf2 {[%clk 0:00:22.1]} 39... Rd3 {[%clk 0:01:20.2]} 40. Rxd3
{[%clk 0:00:21.3]} 40... exd3 {[%clk 0:01:21.1]} 41. Kf3 {[%clk 0:00:19.6]}
41... Rc2 {[%clk 0:01:20]} 42. Ke3 {[%clk 0:00:19.2]} 42... Rxf2 {[%clk
0:01:13.9]} 43. Kxf2 {[%clk 0:00:19.3]} 43... c5 {[%clk 0:01:14.8]} 44. b3
{[%clk 0:00:18.5]} 44... h4 {[%clk 0:01:14.8]} 45. gxh4 {[%clk 0:00:17.2]} 45...
Kh6 {[%clk 0:01:15.2]} 46. Ke3 {[%clk 0:00:17.6]} 46... Kh5 {[%clk 0:01:16.1]}
47. Kxd3 {[%clk 0:00:18.1]} 47... Kxh4 {[%clk 0:01:16.7]} 48. Kc4 {[%clk
0:00:15.4]} 48... Kxh3 {[%clk 0:01:17.2]} 49. Kxc5 {[%clk 0:00:13.9]} 49... Kg4
{[%clk 0:01:18.1]} 50. Kxb4 {[%clk 0:00:13.2]} 50... Kxf4 {[%clk 0:01:19]} 51.
a4 {[%clk 0:00:13.4]} 51... Ke3 {[%clk 0:01:14.2]} 52. a5 {[%clk 0:00:12.8]}
52... f4 {[%clk 0:01:15]} 53. a6 {[%clk 0:00:13.4]} 53... f3 {[%clk 0:01:15.1]}
54. a7 {[%clk 0:00:13.9]} 54... f2 {[%clk 0:01:16]} 55. a8=Q {[%clk 0:00:14.3]}
55... f1=Q {[%clk 0:01:16.9]} 56. Qa7+ {[%clk 0:00:13.9]} 56... Kd2 {[%clk
0:01:17]} 57. Qd4+ {[%clk 0:00:12.6]} 57... Kc2 {[%clk 0:01:16.2]} 58. Qc4+
{[%clk 0:00:11.9]} 58... Qxc4+ {[%clk 0:01:15.9]} 59. bxc4 {[%clk 0:00:12.8]}
59... f5 {[%clk 0:01:16.6]} 60. c5 {[%clk 0:00:13.4]} 60... f4 {[%clk
0:01:17.2]} 61. c6 {[%clk 0:00:14.3]} 61... f3 {[%clk 0:01:17.8]} 62. c7 {[%clk
0:00:14.8]} 62... f2 {[%clk 0:01:18]} 63. c8=Q+ {[%clk 0:00:15.2]} 63... Kd2
{[%clk 0:01:18.9]} 64. Qh3 {[%clk 0:00:14.2]} 64... Ke2 {[%clk 0:01:18.6]} 65.
Qg2 {[%clk 0:00:14.2]} 65... Ke1 {[%clk 0:01:17.9]} 66. Qg3 {[%clk 0:00:14]}
66... Ke2 {[%clk 0:01:17]} 67. Qe5+ {[%clk 0:00:12.8]} 67... Kf3 {[%clk
0:01:16]} 68. Qf5+ {[%clk 0:00:12.6]} 68... Kg2 {[%clk 0:01:16.6]} 69. Qe4+
{[%clk 0:00:12.1]} 69... Kg1 {[%clk 0:01:16.3]} 70. Qe3 {[%clk 0:00:11.6]} 70...
Kh1 {[%clk 0:01:16.1]} 71. Qf3+ {[%clk 0:00:11]} 71... Kg1 {[%clk 0:01:16.2]}
72. Qg3+ {[%clk 0:00:11.4]} 72... Kh1 {[%clk 0:01:16.4]} 73. Qh4+ {[%clk
0:00:11.1]} 73... Kg1 {[%clk 0:01:16.2]} 74. Qd4 {[%clk 0:00:09.7]} 74... Kh1
{[%clk 0:01:15.6]} 75. Qd1+ {[%clk 0:00:08.7]} 75... Kg2 {[%clk 0:01:15.8]} 76.
Qe2 {[%clk 0:00:08.7]} 76... Kh1 {[%clk 0:01:15.7]} 77. Qf1+ {[%clk 0:00:08.7]}
77... Kh2 {[%clk 0:01:15.7]} 78. Qxf2+ {[%clk 0:00:09.2]} 1-0

[Event "*** Titled Tuesday Blitz"]
[Site "Chess.com"]
[Date "2020.10.27"]
[Round "5"]
[White "Benjoneliere44"]
[Black "Smirnov_Pavel"]
[Result "1-0"]
[WhiteElo "2684"]
[BlackElo "2849"]
[TimeControl "180+1"]
[EndTime "10:56:29 PDT"]
[Termination "Benjoneliere44 won by resignation"]

1. d4 {[%clk 0:03:00.9]} 1... Nf6 {[%clk 0:02:59.5]} 2. Bf4 {[%clk 0:02:58.1]}
2... e6 {[%clk 0:02:58.6]} 3. e3 {[%clk 0:02:57.8]} 3... c5 {[%clk 0:02:58.3]}
4. c3 {[%clk 0:02:57.8]} 4... d5 {[%clk 0:02:53.1]} 5. Nd2 {[%clk 0:02:57.4]}
5... Bd6 {[%clk 0:02:52.5]} 6. Bxd6 {[%clk 0:02:57.5]} 6... Qxd6 {[%clk
0:02:52.6]} 7. f4 {[%clk 0:02:58.4]} 7... O-O {[%clk 0:02:52]} 8. Ngf3 {[%clk
0:02:57.8]} 8... cxd4 {[%clk 0:02:52]} 9. cxd4 {[%clk 0:02:57.3]} 9... b6 {[%clk
0:02:51.7]} 10. Ne5 {[%clk 0:02:51.9]} 10... Bb7 {[%clk 0:02:09.8]} 11. Bd3
{[%clk 0:02:49.3]} 11... Ne4 {[%clk 0:02:01.2]} 12. O-O {[%clk 0:02:46.7]} 12...
f6 {[%clk 0:01:59.9]} 13. Nef3 {[%clk 0:02:37.9]} 13... Nd7 {[%clk 0:01:57.8]}
14. Qb3 {[%clk 0:02:29.5]} 14... Kh8 {[%clk 0:01:35.8]} 15. Rad1 {[%clk
0:02:16]} 15... a5 {[%clk 0:01:30.8]} 16. a3 {[%clk 0:02:13.4]} 16... a4 {[%clk
0:01:28]} 17. Qc2 {[%clk 0:02:12.8]} 17... Rfc8 {[%clk 0:01:25.4]} 18. Qb1
{[%clk 0:02:12.7]} 18... f5 {[%clk 0:01:23.9]} 19. Nxe4 {[%clk 0:02:02.7]} 19...
dxe4 {[%clk 0:01:18.8]} 20. Ne5 {[%clk 0:02:03.1]} 20... Nxe5 {[%clk 0:01:12.9]}
21. fxe5 {[%clk 0:01:55.9]} 21... Qe7 {[%clk 0:01:12.8]} 22. Bb5 {[%clk
0:01:39.4]} 22... Qg5 {[%clk 0:01:04.1]} 23. Rde1 {[%clk 0:01:19]} 23... Bd5
{[%clk 0:01:02.9]} 24. g3 {[%clk 0:01:07.9]} 24... Rc7 {[%clk 0:00:58.3]} 25.
Kf2 {[%clk 0:01:01.6]} 25... Qh5 {[%clk 0:00:26.1]} 26. Kg1 {[%clk 0:00:58.9]}
26... Qh6 {[%clk 0:00:23]} 27. Qd1 {[%clk 0:00:49.7]} 27... Ra5 {[%clk
0:00:21.9]} 28. Qe2 {[%clk 0:00:45.2]} 28... Ra8 {[%clk 0:00:18.5]} 29. Rc1
{[%clk 0:00:45]} 29... Rac8 {[%clk 0:00:18.3]} 30. Qd2 {[%clk 0:00:42.1]} 30...
g5 {[%clk 0:00:15.2]} 31. Rxc7 {[%clk 0:00:41.8]} 31... Rxc7 {[%clk 0:00:15]}
32. Rc1 {[%clk 0:00:42.2]} 32... Qg7 {[%clk 0:00:14.5]} 33. Rxc7 {[%clk
0:00:41.1]} 33... Qxc7 {[%clk 0:00:13.8]} 34. Bxa4 {[%clk 0:00:31.1]} 34... Kg7
{[%clk 0:00:12.3]} 35. Qc3 {[%clk 0:00:30.2]} 35... Qa7 {[%clk 0:00:12]} 36. Bb5
{[%clk 0:00:29.6]} 36... Qb7 {[%clk 0:00:11.3]} 37. b4 {[%clk 0:00:26.9]} 37...
Qf7 {[%clk 0:00:10.7]} 38. Qc8 {[%clk 0:00:25.6]} 38... f4 {[%clk 0:00:10.6]}
39. Qd7 {[%clk 0:00:18.9]} 39... fxe3 {[%clk 0:00:09.1]} 40. Qxf7+ {[%clk
0:00:17.1]} 40... Kxf7 {[%clk 0:00:08.9]} 41. Kf1 {[%clk 0:00:17.7]} 41... Kg6
{[%clk 0:00:09.1]} 42. Ke2 {[%clk 0:00:18.2]} 42... Kf5 {[%clk 0:00:08.9]} 43.
Kxe3 {[%clk 0:00:18.5]} 43... Kg4 {[%clk 0:00:08.9]} 44. Bf1 {[%clk 0:00:19]}
44... h5 {[%clk 0:00:07.6]} 45. a4 {[%clk 0:00:19.1]} 45... h4 {[%clk
0:00:06.8]} 46. gxh4 {[%clk 0:00:19.5]} 46... Kxh4 {[%clk 0:00:07]} 47. a5
{[%clk 0:00:19.9]} 47... bxa5 {[%clk 0:00:07]} 48. bxa5 {[%clk 0:00:20.8]} 48...
g4 {[%clk 0:00:07.3]} 49. a6 {[%clk 0:00:20.9]} 49... g3 {[%clk 0:00:06.8]} 50.
hxg3+ {[%clk 0:00:20.7]} 50... Kxg3 {[%clk 0:00:07.7]} 51. a7 {[%clk 0:00:20.4]}
51... Kg4 {[%clk 0:00:07.1]} 52. Bc4 {[%clk 0:00:20.7]} 1-0

[Event "*** Titled Tuesday Blitz"]
[Site "Chess.com"]
[Date "2020.10.27"]
[Round "5"]
[White "mbojan"]
[Black "vanyakuba"]
[Result "0-1"]
[WhiteElo "2699"]
[BlackElo "2511"]
[TimeControl "180+1"]
[EndTime "10:56:30 PDT"]
[Termination "vanyakuba won by resignation"]

1. e4 {[%clk 0:03:00.9]} 1... d5 {[%clk 0:03:00]} 2. exd5 {[%clk 0:03:00.6]}
2... Qxd5 {[%clk 0:03:00.9]} 3. Nc3 {[%clk 0:03:00.5]} 3... Qa5 {[%clk
0:03:00.8]} 4. d4 {[%clk 0:03:00.7]} 4... Nf6 {[%clk 0:03:01.1]} 5. Nf3 {[%clk
0:03:00.6]} 5... Bg4 {[%clk 0:03:01.3]} 6. Be2 {[%clk 0:02:51]} 6... Nc6 {[%clk
0:03:01]} 7. Be3 {[%clk 0:02:45.8]} 7... O-O-O {[%clk 0:02:51.2]} 8. h3 {[%clk
0:02:07.2]} 8... Bxf3 {[%clk 0:02:18.7]} 9. Bxf3 {[%clk 0:02:08.1]} 9... e5
{[%clk 0:01:46.6]} 10. d5 {[%clk 0:01:56.5]} 10... Nb4 {[%clk 0:01:46.7]} 11.
O-O {[%clk 0:01:42.1]} 11... Be7 {[%clk 0:01:20.8]} 12. Qd2 {[%clk 0:01:20.6]}
12... Kb8 {[%clk 0:00:57.2]} 13. Rad1 {[%clk 0:00:25.1]} 13... c6 {[%clk
0:00:56.9]} 14. Bg5 {[%clk 0:00:18.2]} 14... Nbxd5 {[%clk 0:00:30.8]} 15. Nxd5
{[%clk 0:00:08.4]} 15... Qxd2 {[%clk 0:00:29.7]} 16. Rxd2 {[%clk 0:00:07.5]}
16... Nxd5 {[%clk 0:00:27]} 17. Rxd5 {[%clk 0:00:06.6]} 17... Bxg5 {[%clk
0:00:23.3]} 18. Rxe5 {[%clk 0:00:07]} 18... Bf6 {[%clk 0:00:20.4]} 19. Re2
{[%clk 0:00:07]} 19... Rhe8 {[%clk 0:00:18.2]} 20. Rxe8 {[%clk 0:00:05.4]} 20...
Rxe8 {[%clk 0:00:19.1]} 21. c3 {[%clk 0:00:05.9]} 21... Rd8 {[%clk 0:00:18.4]}
22. Rb1 {[%clk 0:00:04.4]} 22... Rd2 {[%clk 0:00:17.9]} 23. Kf1 {[%clk 0:00:05]}
23... Kc7 {[%clk 0:00:16.5]} 24. Ke1 {[%clk 0:00:05.5]} 24... Rd7 {[%clk
0:00:16.4]} 25. Ke2 {[%clk 0:00:05.9]} 25... a5 {[%clk 0:00:16.3]} 26. a4 {[%clk
0:00:05.9]} 26... Bg5 {[%clk 0:00:14.3]} 27. Be4 {[%clk 0:00:04.8]} 27... Rd2+
{[%clk 0:00:11.7]} 28. Kf3 {[%clk 0:00:05.3]} 28... g6 {[%clk 0:00:12]} 29. g3
{[%clk 0:00:05.8]} 29... f5 {[%clk 0:00:11.6]} 30. Bxf5 {[%clk 0:00:04.1]} 30...
gxf5 {[%clk 0:00:11.5]} 31. h4 {[%clk 0:00:05]} 31... Bh6 {[%clk 0:00:10.5]} 32.
b4 {[%clk 0:00:05.6]} 32... Rd3+ {[%clk 0:00:09.3]} 33. Ke2 {[%clk 0:00:06.2]}
33... Rxc3 {[%clk 0:00:09.6]} 34. bxa5 {[%clk 0:00:06.9]} 34... Ra3 {[%clk
0:00:07.8]} 35. Rb4 {[%clk 0:00:07.2]} 35... Ra2+ {[%clk 0:00:03.9]} 36. Kf3
{[%clk 0:00:07.4]} 36... Ra3+ {[%clk 0:00:04.5]} 37. Ke2 {[%clk 0:00:07.4]}
37... Ra1 {[%clk 0:00:04.4]} 38. Kf3 {[%clk 0:00:04.8]} 38... Rd1 {[%clk
0:00:04.4]} 39. Ke2 {[%clk 0:00:05.1]} 39... Rd5 {[%clk 0:00:04.6]} 40. a6
{[%clk 0:00:05.7]} 40... bxa6 {[%clk 0:00:04.4]} 41. Rc4 {[%clk 0:00:06.2]}
41... a5 {[%clk 0:00:04.2]} 42. Kf3 {[%clk 0:00:05.5]} 42... Kd6 {[%clk
0:00:04.5]} 43. Rc2 {[%clk 0:00:04.9]} 43... Bg7 {[%clk 0:00:04.2]} 44. Rb2
{[%clk 0:00:04.5]} 44... Bxb2 {[%clk 0:00:04]} 0-1